bitfinex/quotes_ETHUSD_20230116
["timestamp","ask_amount","ask_price","bid_price","bid_amount"]
[1673882168168,3.27278678,1530.2,1529.4,8.15788343]
[1673882168520,13.07218,1530.0,1529.3,0.066]
[1673882168648,13.16850191,1530.0,1529.2,0.653926]
[1673882168860,0.4906,1529.9,1529.2,0.653926]
[1673882169183,6.53944,1529.9,1529.2,7.192876]
[1673882169387,6.63276191,1529.9,1529.2,6.53923]
[1673882169598,11.76338678,1529.8,1529.1,0.066]
[1673882169865,11.76338678,1529.8,1528.8,13.08193]
[1673882169866,6.53769,1529.6,1528.8,13.08193]
[1673882170016,0.09632191,1529.6,1528.8,13.08193]
[1673882170225,6.63389191,1529.7,1528.8,13.08193]
[1673882170487,0.4907,1529.6,1528.9,1.308193]
[1673882170702,0.09632191,1529.7,1528.9,5.2048365]
[1673882170924,0.17132191,1530.1,1529.0,16.9760389]
[1673882171090,8.72993,1530.2,1529.1,6.89719005]
[1673882171441,0.58682191,1530.2,1529.3,2.0]
[1673882171595,0.00971217,1530.3,1529.4,4.08969452]
[1673882171804,0.00971217,1530.3,1529.5,3.0]
[1673882172065,0.00971217,1530.3,1529.7,13.07427]
[1673882172238,0.00971217,1530.3,1529.9,6.53616]
[1673882172451,0.00971217,1530.3,1530.0,5.27278678]
[1673882172787,0.00971217,1530.3,1529.9,0.066]
[1673882173006,7.03492217,1530.3,1529.7,0.066]
[1673882173329,2.0,1530.2,1529.4,0.066]
[1673882173544,13.07205,1530.0,1529.2,0.066]
[1673882173694,13.16837191,1530.0,1529.0,6.60591]
[1673882173904,0.4906,1529.9,1529.1,0.692231]
[1673882174129,13.07462,1529.7,1529.1,0.03164]
[1673882174358,0.09632191,1529.7,1529.1,0.03164]
[1673882174546,13.56542,1529.7,1529.1,0.03164]
[1673882174777,13.17104191,1529.7,1529.1,0.03164]
[1673882174983,13.17104191,1529.7,1528.6,6.81844954]
[1673882174984,6.53852,1529.4,1528.6,6.81844954]
[1673882175180,6.63484191,1529.4,1528.7,0.68184495]
[1673882175374,0.4908,1529.3,1528.7,7.22313495]
[1673882175584,0.09632191,1529.5,1528.7,7.22313495]
[1673882175795,0.4907,1529.6,1528.7,11.30791963]
[1673882176005,0.4907,1529.6,1528.8,4.08478468]
[1673882176326,0.4907,1529.7,1529.0,19.62015]
[1673882176490,0.4907,1529.7,1529.0,6.54005]
[1673882176711,1.622,1529.9,1529.0,6.54005]
[1673882176712,7.02771,1529.8,1529.0,6.54005]
[1673882176876,0.58692191,1529.8,1529.1,9.53939]
[1673882177071,0.09632191,1530.0,1529.1,9.53939]
[1673882177280,30.06086979,1530.2,1529.4,6.53821]
[1673882177281,23.22600295,1530.2,1529.4,6.53821]
[1673882177490,0.58682191,1530.2,1529.4,13.07642]
[1673882177762,2.58199321,1530.3,1529.5,0.01343487]
[1673882177763,1.63471217,1530.3,1529.5,0.01343487]
[1673882177967,6.54457217,1530.3,1529.5,3.01343487]
[1673882178122,6.54457217,1530.3,1529.6,6.53759]
[1673882178123,0.59653408,1530.3,1529.6,6.53759]
[1673882178328,0.59653408,1530.3,1529.7,3.92654578]
[1673882178329,0.00971217,1530.3,1529.7,3.92654578]
[1673882178590,0.00971217,1530.3,1529.8,16.34609678]
[1673882178800,0.00971217,1530.3,1529.9,3.27278678]
[1673882178975,0.00971217,1530.3,1530.0,3.27278678]
[1673882179328,0.00971217,1530.3,1529.9,6.53633]
[1673882179329,13.07018,1530.2,1529.9,0.066]
[1673882179493,1.92989283,1529.9,1529.6,6.53725]
[1673882179701,1.92989283,1529.9,1529.5,6.5998]
[1673882180011,1.92989283,1529.9,1529.6,9.81024678]
[1673882180229,1.93842413,1529.9,1529.6,9.81024678]
[1673882180454,1.93842413,1529.9,1529.6,16.34789678]
[1673882180770,1.93842413,1529.9,1529.7,3.0]
[1673882181097,1.93842413,1529.9,1529.8,6.5368]
[1673882181694,0.09632191,1530.2,1529.8,6.5368]
[1673882181695,0.09632191,1530.2,1529.8,20.96034978]
[1673882181908,0.00971217,1530.3,1529.8,20.96034978]
[1673882181909,0.00971217,1530.3,1530.1,3.27278678]
[1673882182168,0.00971217,1530.3,1530.2,19.34296678]
[1673882182386,1.06671217,1530.3,1530.2,6.53509]
[1673882182546,0.00971217,1530.3,1530.2,3.27278678]
[1673882182737,0.00971217,1530.3,1530.1,6.53543]
[1673882182960,0.00971217,1530.3,1530.0,6.60189]
[1673882183321,0.00971217,1530.3,1529.9,0.066]
[1673882183534,0.00971217,1530.3,1529.7,6.60286]
[1673882183687,0.00971217,1530.3,1529.6,0.066]
[1673882183688,9.81717895,1530.3,1529.6,0.066]
[1673882183910,3.76328678,1530.2,1529.4,0.066]
[1673882184303,3.76328678,1530.2,1529.2,7.553209]
[1673882184304,2.0,1530.0,1529.2,7.558939]
[1673882184458,8.53629,1530.0,1529.2,14.032189]
[1673882184652,7.12321191,1530.0,1529.2,14.032189]
[1673882184996,0.09632191,1530.0,1529.3,1.23688816]
[1673882185220,6.53515,1530.2,1529.5,13.07608]
[1673882185424,0.4905,1530.1,1529.5,13.07608]
[1673882185594,0.09632191,1530.2,1529.5,13.07608]
[1673882185957,8.25873408,1530.3,1529.6,1.307608]
[1673882186168,0.10603408,1530.3,1529.7,13.07424]
[1673882186483,0.00971217,1530.3,1529.8,3.27278678]
[1673882186695,6.54438217,1530.3,1529.8,3.27278678]
[1673882186910,2.53037409,1529.6,1529.4,0.06]
[1673882187102,2.53037409,1529.6,1529.4,6.53834]
[1673882187432,2.53037409,1529.6,1529.5,3.27278678]
[1673882188062,2.53037409,1529.6,1529.4,0.066]
[1673882188216,2.53037409,1529.6,1529.3,6.53882]
[1673882188777,2.53037409,1529.6,1529.2,6.60511]
[1673882188989,2.53037409,1529.6,1529.2,6.53911]
[1673882189201,2.53037409,1529.6,1529.2,14.392936]
[1673882189722,2.53037409,1529.6,1529.2,18.4765985]
[1673882189936,2.53037409,1529.6,1529.2,14.392936]
[1673882190189,2.53037409,1529.6,1529.3,3.27278678]
[1673882190479,2.53037409,1529.6,1529.4,9.81123678]
[1673882190793,2.53037409,1529.6,1529.3,0.066]
[1673882190946,2.53037409,1529.6,1529.1,6.60543]
[1673882191164,15.60582409,1529.6,1529.0,0.066]
[1673882191534,15.702146,1529.6,1528.9,6.5403]
[1673882191750,15.702146,1529.6,1528.9,9.81308678]
[1673882191899,8.0,1529.4,1528.8,0.066]
[1673882192111,3.36910869,1529.4,1528.6,6.81833954]
[1673882192444,0.4908,1529.3,1528.6,8.20602533]
[1673882192677,0.4908,1529.4,1528.6,14.74795533]
[1673882192866,13.56798,1529.4,1528.6,14.74795533]
[1673882193058,2.0,1529.3,1528.6,14.74795533]
[1673882193268,13.66430191,1529.4,1528.6,14.74795533]
[1673882193536,0.58712191,1529.4,1528.9,6.54061]
[1673882193743,0.58712191,1529.4,1528.8,0.066]
[1673882193744,10.30229678,1529.4,1528.8,0.066]
[1673882193903,18.39861869,1529.4,1528.7,6.5414]
[1673882194109,21.66454191,1529.4,1528.7,9.81418678]
[1673882194320,3.27278678,1529.3,1528.6,1.73037533]
[1673882194554,13.66454191,1529.4,1528.6,1.73037533]
[1673882194555,0.58712191,1529.4,1528.7,16.35569678]
[1673882194857,0.4908,1529.4,1528.8,3.27278678]
[1673882195173,0.4908,1529.4,1528.9,3.27278678]
[1673882195385,3.117396,1529.6,1529.0,3.27278678]
[1673882195577,3.117396,1529.6,1529.1,3.27278678]
[1673882195578,2.53037409,1529.6,1529.1,3.27278678]
[1673882195784,2.53037409,1529.6,1529.1,6.53957]
[1673882196067,5.80316087,1529.6,1529.0,6.60607]
[1673882196226,5.27278678,1529.5,1528.9,0.066]
[1673882196477,6.63441191,1529.5,1528.7,6.54133]
[1673882196766,0.09632191,1529.5,1528.9,6.54065]
[1673882196982,24.193086,1529.6,1528.8,13.14775]
[1673882197156,2.626696,1529.6,1528.9,16.08115]
[1673882197373,2.53037409,1529.6,1528.9,20.49069493]
[1673882197635,2.53037409,1529.6,1529.0,3.27278678]
[1673882197793,2.53037409,1529.6,1528.9,10.21168678]
[1673882197995,2.53037409,1529.6,1528.9,3.27278678]
[1673882198247,2.53037409,1529.6,1529.0,16.35309678]
[1673882198415,2.53037409,1529.6,1529.1,3.27278678]
[1673882198641,2.53037409,1529.6,1529.2,6.27278678]
[1673882198868,2.53037409,1529.6,1529.5,22.88702678]
[1673882198869,2.42587409,1529.6,1529.5,22.88702678]
[1673882199091,2.42587409,1529.6,1529.5,25.88702678]
[1673882199299,2.42587409,1529.6,1529.5,29.16172946]
[1673882199300,2.39316409,1529.6,1529.5,29.16172946]
[1673882199515,2.39316409,1529.6,1529.5,29.39172946]
[1673882200257,0.09632191,1530.0,1529.6,2.0]
[1673882200586,1.64471217,1530.3,1529.7,22.88427678]
[1673882200768,1.64471217,1530.3,1529.7,16.34706678]
[1673882200977,20.40463481,1530.3,1529.6,0.066]
[1673882201151,6.70127557,1530.2,1529.4,6.6043]
[1673882201359,14.02417233,1530.0,1529.3,0.066]
[1673882201564,15.54898303,1530.0,1529.1,6.53944]
[1673882201846,7.58438424,1530.0,1529.3,6.53881]
[1673882202003,3.27278678,1529.9,1529.2,6.60493]
[1673882202217,3.27278678,1529.9,1529.1,0.066]
[1673882202218,16.34650678,1529.8,1529.1,0.066]
[1673882202405,17.39495102,1529.8,1529.0,6.53992]
[1673882202619,3.76348678,1529.7,1528.9,0.066]
[1673882202845,10.30101678,1529.7,1528.9,13.74245613]
[1673882203042,10.39717869,1529.7,1528.9,13.74245613]
[1673882203277,0.58702191,1529.7,1529.0,3.27278678]
[1673882203517,0.58702191,1529.7,1529.1,6.53974]
[1673882203518,0.4907,1529.7,1529.1,6.53974]
[1673882203671,0.4907,1529.7,1529.1,13.07953]
[1673882203876,0.4907,1529.7,1529.1,15.37537368]
[1673882204126,1.53974505,1529.9,1529.2,5.27278678]
[1673882204347,4.71620992,1529.9,1529.3,6.5388]
[1673882204653,7.97984314,1529.9,1529.3,6.5388]
[1673882204824,8.07616505,1529.9,1529.3,6.5388]
[1673882205035,8.07616505,1529.9,1529.3,7.853198]
[1673882205297,0.09632191,1529.9,1529.4,3.27278678]
[1673882205451,2.38203655,1530.0,1529.5,9.81049678]
[1673882205672,2.38203655,1530.1,1529.5,16.34857678]
[1673882205931,0.95282314,1530.1,1529.5,16.34857678]
[1673882206092,0.95282314,1530.1,1529.6,3.27278678]
[1673882206306,2.38203655,1530.1,1529.8,13.07351]
[1673882206604,2.00076656,1530.2,1529.9,3.27278678]
[1673882206605,1.04914505,1530.2,1529.9,3.27278678]
[1673882206763,0.95282314,1530.2,1529.9,3.27278678]
[1673882206978,0.95282314,1530.2,1529.8,0.066]
[1673882207146,10.76145992,1530.1,1529.6,0.066]
[1673882207358,12.22560992,1530.0,1529.3,0.066]
[1673882207615,23.83498992,1529.9,1529.0,9.60594]
[1673882207768,6.53753,1529.7,1529.0,14.53086258]
[1673882207979,6.63385191,1529.7,1529.0,14.53086258]
[1673882208239,6.63385191,1529.7,1528.9,6.60629]
[1673882208240,3.27278678,1529.6,1528.9,6.60629]
[1673882208456,3.27278678,1529.6,1529.0,6.54017]
[1673882208457,7.02836,1529.6,1529.0,6.54017]
[1673882208668,0.09632191,1529.6,1529.1,3.27278678]
[1673882208815,0.95282314,1529.8,1529.2,6.53915]
[1673882209029,9.80972678,1529.8,1529.1,13.1448]
[1673882209253,9.90604869,1529.8,1529.1,6.53937]
[1673882209499,0.09632191,1529.8,1529.1,6.53945]
[1673882209716,7.48951314,1529.9,1529.2,3.0]
[1673882209929,17.39537183,1529.9,1529.2,6.53928]
[1673882210086,14.12258505,1529.9,1529.2,9.81206678]
[1673882210284,14.12258505,1529.9,1529.2,12.10777146]
[1673882210947,6.53689,1529.8,1529.1,13.14492]
[1673882211125,0.09632191,1529.8,1529.1,16.35202678]
[1673882211339,0.95282314,1529.8,1529.1,16.35202678]
[1673882211579,0.09632191,1529.9,1529.4,13.07692]
[1673882211778,3.43472618,1530.1,1529.5,3.27278678]
[1673882211970,0.95391431,1530.0,1529.6,16.67528546]
[1673882212217,3.82392106,1530.3,1529.7,8.27278678]
[1673882212218,1.05994839,1530.3,1529.7,8.27278678]
[1673882212397,0.00971217,1530.3,1529.8,16.34594678]
[1673882212864,0.9638199,1530.3,1529.9,3.27278678]
[1673882213086,0.00971217,1530.3,1530.0,6.53592]
[1673882213864,0.00971217,1530.3,1530.0,1.84110068]
[1673882214230,0.00971217,1530.3,1530.1,3.27278678]
[1673882214392,0.00971217,1530.3,1530.0,0.066]
[1673882214606,0.00971217,1530.3,1529.9,6.53599]
[1673882214956,0.9635571,1530.3,1529.9,6.53636]
[1673882215167,0.00971217,1530.3,1529.9,6.53636]
[1673882215336,0.00971217,1530.3,1530.1,6.53552]
[1673882215545,0.00971217,1530.3,1530.2,3.27278678]
[1673882215804,0.00971217,1530.3,1530.2,19.34296678]
[1673882215973,0.00971217,1530.3,1530.2,12.80787678]
[1673882216432,0.00971217,1530.3,1530.2,19.34296678]
[1673882216595,0.00971217,1530.3,1530.2,22.59096246]
[1673882216802,0.00071217,1530.3,1530.2,22.59096246]
[1673882217016,0.03618953,1530.4,1530.3,2.0]
[1673882217284,12.22607157,1530.5,1530.3,8.27278678]
[1673882217604,12.22607157,1530.5,1530.3,15.18024678]
[1673882217820,12.22607157,1530.5,1530.4,3.27278678]
[1673882217961,12.22607157,1530.5,1530.4,12.80701678]
[1673882218294,12.22607157,1530.5,1530.3,0.066]
[1673882218509,12.22607157,1530.5,1530.2,6.53475]
[1673882218861,12.22607157,1530.5,1530.4,2.0]
[1673882219019,12.22607157,1530.5,1530.4,8.27278678]
[1673882219232,12.22607157,1530.5,1530.4,22.82859046]
[1673882219699,8.58237157,1530.5,1530.4,22.82859046]
[1673882220061,0.04813147,1530.8,1530.5,3.27278678]
[1673882220323,0.03860299,1531.0,1530.7,3.27278678]
[1673882220513,0.04015727,1531.1,1530.9,10.06678678]
[1673882220727,0.04015727,1531.1,1531.0,28.87447546]
[1673882221010,1.09715727,1531.1,1531.0,11.53167]
[1673882221219,1.09715727,1531.1,1531.0,9.53167]
[1673882221443,0.04015727,1531.1,1531.0,9.80445678]
[1673882222539,0.04015727,1531.1,1531.0,16.33612678]
[1673882222735,0.04015727,1531.1,1531.0,19.33612678]
[1673882222942,0.04015727,1531.1,1531.0,21.92951146]
[1673882224083,0.04015727,1531.1,1531.0,12.80445678]
[1673882224528,0.04015727,1531.1,1531.0,19.33612678]
[1673882224753,0.04015727,1531.1,1531.0,3.0]
[1673882225144,1.04323712,1530.9,1530.7,6.53263]
[1673882225537,1.04323712,1530.9,1530.8,3.27278678]
[1673882225828,1.04323712,1530.9,1530.8,17.97168346]
[1673882226666,1.04323712,1530.9,1530.8,20.97168346]
[1673882226872,0.099,1531.4,1530.9,2.0]
[1673882227026,10.17191002,1531.7,1531.0,16.33591678]
[1673882227238,10.17191002,1531.7,1531.1,3.27278678]
[1673882227239,0.099,1531.7,1531.1,3.27278678]
[1673882227448,0.099,1531.8,1531.2,3.27278678]
[1673882227716,1.47033807,1531.9,1531.4,2.0]
[1673882227868,0.49,1531.8,1531.5,3.27278678]
[1673882228078,0.04524473,1531.9,1531.5,3.27278678]
[1673882228321,0.04524473,1531.9,1531.6,16.33092678]
[1673882228553,0.04524473,1531.9,1531.6,3.27278678]
[1673882228726,0.04524473,1531.9,1531.5,0.066]
[1673882229081,0.04524473,1531.9,1531.3,9.59635]
[1673882229335,11.27278678,1531.8,1531.2,0.066]
[1673882229510,3.27278678,1531.7,1530.9,8.59786]
[1673882229657,0.589,1531.8,1530.9,8.59786]
[1673882229658,1.23533918,1531.8,1531.2,6.5305]
[1673882229874,0.49,1531.8,1531.3,3.27278678]
[1673882230129,2.31724473,1531.9,1531.3,3.27278678]
[1673882230338,2.31724473,1531.9,1531.2,13.12716]
[1673882230339,6.52827,1531.8,1531.2,6.5965]
[1673882230497,0.021,1531.8,1531.4,6.52963]
[1673882230712,0.53524473,1531.9,1531.4,9.80241678]
[1673882231038,0.04524473,1531.9,1531.4,9.80241678]
[1673882231251,0.04524473,1531.9,1531.3,9.59632]
[1673882231482,0.04524473,1531.9,1531.4,9.52992]
[1673882231690,0.04524473,1531.9,1531.4,3.0]
[1673882231902,0.04524473,1531.9,1531.4,16.05977]
[1673882232129,0.04524473,1531.9,1531.4,6.5298]
[1673882232338,0.53524473,1531.9,1531.4,6.5298]
[1673882232556,0.04524473,1531.9,1531.5,3.92576678]
[1673882232765,0.04524473,1531.9,1531.6,24.85987678]
[1673882232976,0.04524473,1531.9,1531.7,6.27278678]
[1673882233294,0.04524473,1531.9,1531.8,16.32930678]
[1673882233776,0.04524473,1531.9,1531.8,21.32930678]
[1673882233982,0.04524473,1531.9,1531.8,24.12168546]
[1673882234346,0.04524473,1531.9,1531.7,13.12283]
[1673882234657,1.787,1532.3,1531.9,2.0]
[1673882234658,0.099,1532.3,1531.9,2.0]
[1673882234843,0.04890936,1532.6,1532.0,22.85474678]
[1673882235016,0.04890936,1532.6,1532.5,3.27278678]
[1673882235229,0.01208285,1532.9,1532.6,0.048]
[1673882235477,0.01208285,1532.9,1532.7,22.84607678]
[1673882235671,0.01208285,1532.9,1532.8,3.27278678]
[1673882235879,0.01208285,1532.9,1532.8,9.79678678]
[1673882236123,0.01208285,1532.9,1532.8,14.79678678]
[1673882236346,0.01208285,1532.9,1532.8,23.45950846]
[1673882236651,0.00402685,1533.1,1532.8,24.10584764]
[1673882236923,0.94665837,1533.7,1533.0,3.27278678]
[1673882237093,0.03163,1533.6,1533.2,16.31704678]
[1673882237239,0.099,1533.9,1533.5,3.27278678]
[1673882237454,2.30624753,1534.1,1533.7,3.27278678]
[1673882237455,1.27263754,1534.1,1533.7,3.27278678]
[1673882237720,1.772,1534.3,1533.7,3.27278678]
[1673882237721,0.099,1534.3,1533.8,14.97647227]
[1673882237947,9.04260999,1534.6,1533.8,5.45672227]
[1673882238085,9.04260999,1534.6,1533.6,0.32727868]
[1673882238086,3.1208634,1533.7,1533.6,0.03]
[1673882238294,3.1208634,1533.7,1533.0,2.0]
[1673882238295,3.1208634,1533.7,1533.2,6.58825]
[1673882238571,3.1208634,1533.7,1533.4,3.27278678]
[1673882238880,3.1208634,1533.7,1533.5,9.79381678]
[1673882239069,3.1208634,1533.7,1533.6,3.27278678]
[1673882239260,0.099,1533.9,1533.6,16.31398678]
[1673882239618,1.88722376,1534.5,1533.7,12.79291678]
[1673882239619,13.03399,1534.5,1533.7,12.79291678]
[1673882239831,6.61579,1534.5,1533.8,3.27278678]
[1673882239976,0.099,1534.5,1534.4,3.27278678]
[1673882240185,0.1057426,1534.8,1534.3,13.03483]
[1673882240186,0.0157426,1534.8,1534.3,0.066]
[1673882240519,0.07510216,1534.6,1534.2,6.51783]
[1673882240707,0.07510216,1534.6,1534.3,6.27278678]
[1673882240918,0.07510216,1534.6,1534.4,3.27278678]
[1673882241129,0.07510216,1534.6,1534.5,16.30634678]
[1673882241342,0.07510216,1534.6,1534.5,23.31805994]
[1673882241939,0.0157426,1534.8,1534.5,24.83099646]
[1673882242140,0.02476686,1535.0,1534.7,3.27278678]
[1673882242284,6.86e-06,1535.0,1534.9,3.27278678]
[1673882242652,0.59773,1535.4,1535.3,16.29954678]
[1673882242867,0.59773,1535.4,1535.3,16.52954678]
[1673882243020,0.59773,1535.4,1535.3,25.81292678]
[1673882243232,0.59773,1535.4,1535.3,3.27278678]
[1673882243716,0.59773,1535.4,1535.3,6.27278678]
[1673882243861,14.52004,1536.2,1535.3,12.78616678]
[1673882244072,14.52004,1536.2,1535.2,13.09354]
[1673882244073,8.99914,1536.0,1535.2,0.066]
[1673882244295,8.0,1535.6,1535.0,2.006]
[1673882244534,8.0,1535.6,1535.0,2.002]
[1673882244535,8.081,1535.6,1535.0,2.002]
[1673882244748,8.081,1535.6,1534.6,9.02916965]
[1673882244749,7.64799918,1535.5,1534.8,0.066]
[1673882244960,8.0,1535.2,1534.7,2.0]
[1673882245174,8.099,1535.2,1534.7,1.05096308]
[1673882245341,0.489,1535.1,1534.3,0.126]
[1673882245560,0.489,1535.1,1534.1,0.006]
[1673882245792,20.03232,1535.1,1534.0,10.47682749]
[1673882245999,20.03232,1535.1,1533.9,6.57896]
[1673882246000,13.03018,1534.9,1534.1,2.0]
[1673882246173,14.5172,1534.5,1533.9,0.096]
[1673882246383,6.6162,1534.5,1533.7,2.391]
[1673882246591,6.6162,1534.5,1533.8,0.03154]
[1673882246592,6.51767,1534.3,1533.8,0.03154]
[1673882246817,0.099,1534.3,1533.8,13.07098]
[1673882247012,1.704,1534.7,1533.9,1.307098]
[1673882247250,1.803,1534.8,1534.0,6.55035]
[1673882247459,0.588,1534.9,1534.1,3.97478311]
[1673882247711,0.003,1534.9,1534.3,6.51758]
[1673882247852,6.51484,1535.0,1534.2,0.09753]
[1673882248071,17.78813678,1534.9,1534.3,0.03153]
[1673882248278,8.0,1534.7,1534.3,0.03153]
[1673882248605,0.099,1534.7,1534.3,0.03153]
[1673882248955,8.564,1534.9,1534.3,6.54883]
[1673882248956,0.588,1534.9,1534.3,6.54883]
[1673882249167,8.0,1535.1,1534.4,0.654883]
[1673882249168,8.588,1535.1,1534.4,0.654883]
[1673882249320,8.588,1535.1,1534.5,6.54802]
[1673882249321,0.588,1535.1,1534.5,6.54802]
[1673882249536,0.4889,1535.2,1534.6,5.03153]
[1673882249748,23.4023,1535.4,1534.7,3.98722255]
[1673882250061,0.099,1535.4,1534.8,9.51518]
[1673882250304,0.08550222,1535.5,1534.9,6.515]
[1673882250493,0.08550222,1535.5,1535.3,3.27278678]
[1673882250919,0.08550222,1535.5,1535.2,0.066]
[1673882251124,0.08550222,1535.5,1535.2,3.27278678]
[1673882251352,0.08550222,1535.5,1535.2,9.78645678]
[1673882251578,0.08550222,1535.5,1535.3,4.25143246]
[1673882251793,0.08550222,1535.5,1535.3,3.27278678]
[1673882252062,0.08550222,1535.5,1535.4,3.27278678]
[1673882252241,0.08550222,1535.5,1535.4,9.81725678]
[1673882252388,0.08550222,1535.5,1535.4,14.81725678]
[1673882252598,0.08550222,1535.5,1535.4,21.61812444]
[1673882252811,0.098,1536.3,1535.5,2.0]
[1673882253020,0.4886,1536.2,1535.7,16.29580678]
[1673882253298,23.21055771,1536.5,1535.8,3.30428678]
[1673882253299,21.51455771,1536.5,1535.8,3.30428678]
[1673882253594,21.51455771,1536.5,1536.0,8.51037]
[1673882253754,0.4885,1536.4,1536.1,0.03149]
[1673882253961,8.4885,1536.4,1536.1,0.03149]
[1673882254171,8.4885,1536.4,1535.7,0.066]
[1673882254172,8.0,1536.2,1535.7,0.066]
[1673882254426,8.098,1536.2,1535.5,6.51423]
[1673882254635,15.09629,1536.2,1535.5,3.27478678]
[1673882254848,8.5866,1536.2,1535.6,3.27278678]
[1673882255017,0.5866,1536.2,1535.8,13.02229]
[1673882255228,4.78395771,1536.5,1535.7,0.066]
[1673882255229,8.4885,1536.4,1535.7,0.066]
[1673882255440,15.0953,1536.4,1535.8,3.27278678]
[1673882255698,15.09522,1536.4,1535.7,2.066]
[1673882255865,8.5865,1536.4,1535.8,3.27278678]
[1673882256223,0.5865,1536.4,1535.9,3.27278678]
[1673882256428,0.5865,1536.4,1535.8,6.51126]
[1673882256429,21.10408222,1536.3,1535.8,0.066]
[1673882256655,21.10408222,1536.3,1535.4,2.002]
[1673882256656,21.02017,1536.1,1535.4,2.002]
[1673882256810,0.098,1536.1,1535.5,3.47298678]
[1673882257015,0.098,1536.2,1535.6,3.27278678]
[1673882257229,8.0,1536.2,1535.7,3.27278678]
[1673882257478,21.11734,1536.2,1535.5,0.066]
[1673882257685,8.0,1535.9,1535.4,0.002]
[1673882257897,6.51127,1535.8,1535.4,0.03151]
[1673882258138,6.60927,1535.8,1535.4,0.03151]
[1673882258287,13.12054,1535.8,1535.4,0.03151]
[1673882258495,13.12054,1535.8,1535.4,0.02835901]
[1673882258741,13.02422,1535.6,1535.4,0.02835901]
[1673882258952,6.61034,1535.6,1535.4,0.02835901]
[1673882259164,0.098,1535.6,1535.4,0.02835901]
[1673882259326,1.746,1535.9,1535.5,3.27278678]
[1673882259605,8.35467,1536.0,1535.5,3.27278678]
[1673882259606,6.60867,1536.0,1535.6,3.27278678]
[1673882259817,0.098,1536.0,1535.7,3.27278678]
[1673882260076,0.098,1536.2,1535.8,6.27278678]
[1673882260326,0.08550222,1536.3,1536.0,3.27278678]
[1673882260443,0.08550222,1536.3,1536.2,3.27278678]
[1673882260652,0.08550222,1536.3,1536.2,6.27278678]
[1673882260903,0.08550222,1536.3,1536.2,6.27478678]
[1673882261118,0.08550222,1536.3,1536.2,3.002]
[1673882261290,0.08550222,1536.3,1536.2,3.27278678]
[1673882261499,0.08550222,1536.3,1536.2,12.78234678]
[1673882261766,0.08550222,1536.3,1536.2,14.56918146]
[1673882262195,0.08550222,1536.3,1536.2,12.78434678]
[1673882262499,0.08550222,1536.3,1536.2,14.79772305]
[1673882262656,0.09307371,1536.8,1536.3,8.794]
[1673882262869,0.09307371,1536.8,1536.4,3.0]
[1673882262870,6.60019371,1536.8,1536.4,3.0]
[1673882263114,6.69816371,1536.8,1536.4,3.0]
[1673882263347,6.69816371,1536.8,1536.3,0.066]
[1673882263539,6.69816371,1536.8,1536.2,5.0]
[1673882263540,16.47804049,1536.8,1536.2,3.002]
[1673882263707,6.69819371,1536.8,1536.3,3.27278678]
[1673882263935,6.69819371,1536.8,1536.3,0.03149]
[1673882263936,6.69818371,1536.8,1536.3,0.03149]
[1673882264141,6.69818371,1536.8,1536.4,3.27278678]
[1673882264370,6.68769121,1536.8,1536.3,0.09749]
[1673882264547,6.68769121,1536.8,1536.4,3.27278678]
[1673882264548,0.18059121,1536.8,1536.4,3.27278678]
[1673882264765,0.08259121,1536.8,1536.5,3.27278678]
[1673882264969,0.08259121,1536.8,1536.4,0.03149]
[1673882264970,0.08259121,1536.8,1536.4,0.09749]
[1673882265184,0.08259121,1536.8,1536.4,3.30427678]
[1673882265600,0.08259121,1536.8,1536.5,3.30427678]
[1673882265917,0.08259121,1536.8,1536.5,0.03149]
[1673882266129,6.58964121,1536.8,1536.5,0.03149]
[1673882266380,0.23,1536.7,1536.5,0.01739789]
[1673882266712,0.23,1536.7,1536.1,0.0745313]
[1673882266713,16.28852678,1536.6,1536.1,0.0745313]
[1673882266902,13.0176,1536.4,1536.1,0.0105313]
[1673882267071,19.6244,1536.4,1536.1,0.0085313]
[1673882267280,20.1129,1536.4,1536.1,0.0085313]
[1673882267546,6.50956,1536.2,1536.1,0.0085313]
[1673882267703,1.155,1536.2,1536.1,0.0085313]
[1673882267914,6.50949,1536.3,1536.1,4.32231808]
[1673882267915,0.098,1536.3,1536.1,4.32231808]
[1673882268175,0.098,1536.7,1536.2,3.70501859]
[1673882268390,6.50749,1536.7,1536.3,3.27278678]
[1673882268601,6.60549,1536.7,1536.4,2.94550811]
[1673882268812,6.60549,1536.7,1536.4,3.27278678]
[1673882269182,6.60549,1536.7,1536.3,0.066]
[1673882269388,6.60549,1536.7,1536.4,3.27278678]
[1673882269597,0.098,1536.7,1536.5,3.27278678]
[1673882269855,0.08259121,1536.8,1536.6,3.27278678]
[1673882270071,0.08259121,1536.8,1536.5,0.066]
[1673882270227,0.08259121,1536.8,1536.6,3.27278678]
[1673882270440,0.08259121,1536.8,1536.7,3.27278678]
[1673882270647,0.08259121,1536.8,1536.7,0.32727868]
[1673882270957,0.08259121,1536.8,1536.4,10.74725758]
[1673882271075,0.08259121,1536.8,1536.5,3.0]
[1673882271287,6.58963121,1536.8,1536.4,0.066]
[1673882271528,13.19467121,1536.8,1536.2,0.066]
[1673882271741,8.0,1536.7,1536.1,0.0085313]
[1673882271953,13.01591,1536.6,1536.1,0.0085313]
[1673882272173,13.11391,1536.6,1536.1,0.0085313]
[1673882272591,8.23,1536.5,1536.1,0.0085313]
[1673882272919,19.5264,1536.4,1536.1,0.0085313]
[1673882273086,13.1156,1536.4,1536.1,0.0085313]
[1673882273278,0.098,1536.4,1536.1,0.0085313]
[1673882273492,13.01774,1536.4,1536.1,0.00472353]
[1673882273844,24.87702678,1536.4,1536.1,0.00472353]
[1673882274225,2.0,1536.3,1536.1,0.00472353]
[1673882274755,13.01912,1536.2,1536.1,0.00472353]
[1673882275009,0.098,1536.2,1536.1,3.27751031]
[1673882275323,0.0113286,1536.3,1536.1,0.33247456]
[1673882275544,0.0113286,1536.3,1536.1,0.00472353]
[1673882275754,13.0296086,1536.3,1536.1,0.00472353]
[1673882275973,0.1093286,1536.3,1536.2,3.27278678]
[1673882276114,0.0113286,1536.3,1536.1,0.00472353]
[1673882277216,0.0113286,1536.3,1536.1,6.51471353]
[1673882277425,8.49579648,1536.8,1536.1,6.51471353]